{"text_format":"1","workbook":"xlsx","n_sheets":6,"sheets":["Ligenspiel","Vereine","Spieler","Ligeneinteilung","Altersklassen","Sonstiges"],"not_rendered":{"charts":0,"images":12,"macros":1,"external_links":0,"defined_names":2,"comments":0,"pivot_tables":0},"unopened":[],"bounds":{"document_bytes":16777216,"sheet_cells":100000,"rows_first":2000,"rows_last":500,"rows_between":2000,"halvings":0,"cell_chars":16384,"cell_head_chars":4096},"cells_cut":0,"cells_raw":0,"read":"whole","date_system":"1900"}

{"sheet":"Ligenspiel","index":0,"n_rows":50,"n_cols":14,"rows_kept":50,"cut":false,"hidden":false,"merged":[[21,3,21,4],[21,7,21,8],[18,2,18,11],[19,2,19,11],[20,0,20,2],[20,3,20,8],[20,9,20,11],[14,0,14,1],[14,8,15,8],[14,10,14,11],[14,6,15,6],[14,7,15,7],[14,3,15,3],[14,4,15,4],[14,5,15,5],[10,0,10,1],[10,8,11,8],[10,10,10,11],[12,0,12,1],[12,8,13,8],[12,10,12,11],[10,7,11,7],[10,6,11,6],[12,6,13,6],[12,7,13,7],[10,3,11,3],[12,3,13,3],[12,4,13,4],[12,5,13,5],[10,4,11,4],[10,5,11,5],[6,0,6,1],[6,8,7,8],[6,10,6,11],[8,0,8,1],[8,8,9,8],[8,10,8,11],[6,6,7,6],[6,7,7,7],[8,6,9,6],[6,5,7,5],[8,7,9,7],[8,3,9,3],[8,4,9,4],[8,5,9,5],[6,3,7,3],[6,4,7,4],[1,9,1,11],[3,9,3,11],[5,0,5,1],[5,2,5,4],[5,8,5,11],[2,10,2,11],[27,9,27,11],[30,9,30,11],[32,0,32,1],[32,2,32,4],[32,8,32,11],[33,10,33,11],[35,0,35,1],[35,3,36,3],[35,4,36,4],[35,7,36,7],[35,8,36,8],[35,10,35,11],[33,0,33,1],[33,3,34,3],[33,4,34,4],[33,7,34,7],[33,8,34,8],[37,10,37,11],[39,0,39,1],[39,3,40,3],[39,4,40,4],[39,7,40,7],[39,8,40,8],[39,10,39,11],[37,0,37,1],[37,3,38,3],[37,4,38,4],[37,7,38,7],[37,8,38,8],[41,10,41,11],[46,2,46,11],[47,2,47,11],[48,0,48,2],[49,3,49,4],[49,7,49,8],[41,0,41,1],[41,3,42,3],[41,4,42,4],[41,7,42,7],[41,8,42,8],[48,3,48,8],[48,9,48,11]]}
[]
[null,null,"Spielbericht"]
[null,null,null,null,null,null,false,null,null,". Spieltag"]
["am:  ",null,{"$f":"TODAY()","v":"2025-08-18"},"ab:",null,null,null,"Uhr","in:"]
[]
["Gastgeber:",null,null,null,null,null,null,"Gast:",null,null,null,null,null," "]
["Pass-Nr.",null,"Name","EWP","Ergeb.",null,null,"Ergeb.","EWP","Name","Pass-Nr."]
["Datum","Zeit","Vorname",null,null,null,null,null,null,"Vorname","Zeit","Datum"]
[null,null,null,{"$f":"IF(E9>0,RANK(F9,$F$9:$G$15,1),\"\")","v":""},null,{"$f":"E9+0.05","v":0.05},{"$f":"H9+0.1","v":0.1},null,{"$f":"IF(H9>0,RANK(G9,$F$9:$G$15,1),\"\")","v":""}]
[{"$f":"$C$4","v":"2025-08-18"},null,null,null,null,null,null,null,{"$f":"RANK(H10,E9:H13,1)","v":{"$error":"#N/A"}},null,null,{"$f":"$C$4","v":"2025-08-18"}]
[null,null,null,{"$f":"IF(E11>0,RANK(F11,$F$9:$G$15,1),\"\")","v":""},null,{"$f":"E11+0.04","v":0.04},{"$f":"H11+0.09","v":0.09},null,{"$f":"IF(H11>0,RANK(G11,$F$9:$G$15,1),\"\")","v":""}]
[{"$f":"$C$4","v":"2025-08-18"},null,null,null,null,null,null,null,{"$f":"RANK(H12,E11:H15,1)","v":{"$error":"#N/A"}},null,null,{"$f":"$C$4","v":"2025-08-18"}]
[null,null,null,{"$f":"IF(E13>0,RANK(F13,$F$9:$G$15,1),\"\")","v":""},null,{"$f":"E13+0.03","v":0.03},{"$f":"H13+0.08","v":0.08},null,{"$f":"IF(H13>0,RANK(G13,$F$9:$G$15,1),\"\")","v":""}]
[{"$f":"$C$4","v":"2025-08-18"},null,null,null,null,null,null,null,{"$f":"RANK(H14,E13:H16,1)","v":{"$error":"#N/A"}},null,null,{"$f":"$C$4","v":"2025-08-18"}]
[null,null,null,{"$f":"IF(E15>0,RANK(F15,$F$9:$G$15,1),\"\")","v":""},null,{"$f":"E15+0.02","v":0.02},{"$f":"H15+0.07","v":7.0000000000000007E-2},null,{"$f":"IF(H15>0,RANK(G15,$F$9:$G$15,1),\"\")","v":""}]
[{"$f":"$C$4","v":"2025-08-18"},null,null,null,null,null,null,null,{"$f":"RANK(H16,E15:H17,1)","v":1},null,null,{"$f":"$C$4","v":"2025-08-18"}]
["Punkte ",null,{"$f":"IF(E17=0,\"\",3-J17)","v":""},{"$f":"IF(E17=0,\"\",SUM(D9,D11,D13,D15))","v":""},{"$f":"SUM(E9:E16)","v":0},null,null,{"$f":"SUM(H9:H16)","v":0},{"$f":"IF(H17=0,\"\",SUM(I9,I11,I13,I15))","v":""},{"$f":"IF(E17=0,\"\",IF(H17=E17,IF(I17>14,2,1),IF(H17>E17,IF(I17>14,3,2),IF(I17>14,1,0))))","v":""},null,"Punkte "]
[]
["Bemerkungen",null,""]
[null,null,""]
["Nachgerechnet und geprüft:"]
[null,null," ","Gastgeber",null,null,null,null,null,"Gast"]
[]
[]
[]
[]
[]
[null,null,"Spielbericht",null,null,null,null,null,null,{"$f":"J2","v":0}]
[null,null,null,null,null,null,null,null,{"$f":"I3","v":0},". Spieltag"]
[]
["am:  ",null,{"$f":"C4","v":"2025-08-18"},null,null,null,null,null,"in:",{"$f":"J4","v":0}]
[]
["Gastgeber:",null,{"$f":"C6","v":0},null,null,null,null,"Gast:",{"$f":"I6","v":0}]
["Pass-Nr.",null,"Name","EWP","Ergeb.",null,null,"Ergeb.","EWP","Name","Pass-Nr."]
["Startzeit","Zeit","Vorname",null,null,null,null,null,null,"Vorname","Zeit","Startzeit"]
[{"$f":"IF(A9<>\"\",A9,\"\")","v":""},null,{"$f":"IF(C9<>\"\",C9,\"\")","v":""},{"$f":"D9","v":""},{"$f":"E9","v":0},null,null,{"$f":"H9","v":0},{"$f":"I9","v":""},{"$f":"IF(J9<>\"\",J9,\"\")","v":""},{"$f":"IF(K9<>\"\",K9,\"\")","v":""}]
[{"$f":"A10","v":"2025-08-18"},{"$f":"IF(B10<>\"\",B10,\"\")","v":""},{"$f":"IF(C10<>\"\",C10,\"\")","v":""},null,null,null,null,null,null,{"$f":"IF(J10<>\"\",J10,\"\")","v":""},"",{"$f":"L10","v":"2025-08-18"}]
[{"$f":"IF(A11<>\"\",A11,\"\")","v":""},null,"",{"$f":"D11","v":""},{"$f":"E11","v":0},null,null,{"$f":"H11","v":0},{"$f":"I11","v":""},"",""]
[{"$f":"A12","v":"2025-08-18"},{"$f":"IF(B12<>\"\",B12,\"\")","v":""},"",null,null,null,null,null,null,"","",{"$f":"L12","v":"2025-08-18"}]
[{"$f":"IF(A13<>\"\",A13,\"\")","v":""},null,"",{"$f":"D13","v":""},{"$f":"E13","v":0},null,null,{"$f":"H13","v":0},{"$f":"I13","v":""},"",""]
[{"$f":"A14","v":"2025-08-18"},{"$f":"IF(B14<>\"\",B14,\"\")","v":""},"",null,null,null,null,null,null,"","",{"$f":"L14","v":"2025-08-18"}]
[{"$f":"IF(A15<>\"\",A15,\"\")","v":""},null,"",{"$f":"D15","v":""},{"$f":"E15","v":0},null,null,{"$f":"H15","v":0},{"$f":"I15","v":""},"",""]
[{"$f":"A16","v":"2025-08-18"},{"$f":"IF(B16<>\"\",B16,\"\")","v":""},"",null,null,null,null,null,null,"","",{"$f":"L16","v":"2025-08-18"}]
[null,null,null,{"$f":"IF(E45=H45,1,IF(E45>H45,2,0))","v":1},{"$f":"IF(E45=H45,1,IF(H45>E45,2,0))","v":1},null,null,{"$f":"IF(D45>33,1,0)","v":1},{"$f":"IF(I45>21,1,0)","v":1}]
["Punkte ",null,{"$f":"C17","v":""},{"$f":"D17","v":""},{"$f":"E17","v":0},null,null,{"$f":"H17","v":0},{"$f":"I17","v":""},{"$f":"J17","v":""},null,"Punkte "]
[]
["Bemerkungen",null,{"$f":"IF(C19 <> \"\",C19,\"\")","v":""}]
[null,null,{"$f":"IF(C20 <> \"\",C20,\"\")","v":""}]
["Nachgerechnet und geprüft:"]
[null,null," ","Gastgeber",null,null,null,null,null,"Gast"]

{"sheet":"Vereine","index":1,"n_rows":41,"n_cols":10,"rows_kept":41,"cut":false,"hidden":false,"merged":[[0,2,0,7],[1,0,2,0],[1,1,2,1],[1,9,2,9],[1,2,2,2],[1,3,2,3],[1,4,1,7],[1,8,2,8]]}
["Verein / Klub",null,"Spielorte"]
["Verein","Klub","Region","Anz\nBahnen","Bahnanlage",null,null,null,"Telefon","E-Mail"]
[null,null,null,null,"Name","Strasse / Nr","PLZ","Ort"]
["JSG Mosel","JSG Mosel","Mosel"]
["Kegelfreunde Kelereiber Wincheringen","KF Kelereiber","Mosel","2","Keglerstuben","Hauptstraße 24A",54332,"Wasserliesch","06501 14487","kelereiber2025@gmail.com"]
["Kegelfreunde Moseltal Wincheringen","KF Moseltal Wincheringen","Mosel",2,"Gasthaus Walter","Warsbergerstraße 45","54457","Wincheringen","06583 554","sportdirektor@kf-moseltal.de"]
["KSC Daun-Weiersbach e.V.","KSC Daun-Weiersbach","Mosel",4,"Keglerheim Weiersbach","Üdersdorfer Straße 3",54550,"Daun-Weiersbach","06596 1345","info@ksc-daun-weiersbach.de"]
["KSV Osburg","KSG Osburg-Riol","Mosel",4,"Hochwaldhalle Osburg","Schulstraße","54317","Osburg","06500 9179428","info@ksv-osburg.de"]
["KSV Riol","KSG Osburg-Riol","Mosel",4,"Hochwaldhalle Osburg","Schulstraße","54317","Osburg","06500 9179428","info@ksv-osburg.de"]
["KSV \"Eifel\" Butzweiler e.V.","KSV Eifel Butzweiler","Mosel",2,"Bürgerhaus Butzweiler","Schulstr. 2",54309,"Butzweiler","06505 1275","sportwart@ksv-butzweiler.info"]
["KSV Heidenburg e.V.","KSV Heidenburg","Mosel",2,"Gasthaus Zur Linde","Brunnenstraße 21","54426","Heidenburg","06509 99020","ksvheidenburg@gmx.de"]
["KSV Taelchen 1977 e.V.","KSV Tälchen","Mosel",2,"Bürgerhaus Krettnach","Hauptstraße 13","54329","Krettnach","06501 18411","sportwart@ksv-taelchen.de"]
["FC Schöndorf","SG Schöndorf-Saarburg","Mosel",4,"KSH Heiligkreuz 5 - 8","Karlsweg 5","54295","Trier","0651 36181","k.dudek@gmx.net"]
["KSV Saartal Saarburg","SG Schöndorf-Saarburg","Mosel",4,"KSH Heiligkreuz 5 - 8","Karlsweg 5","54295","Trier","0651 36181","k.dudek@gmx.net"]
["SK Eifelland Gilzem","SK Eifelland Gilzem","Mosel",4,"Gasthaus Dichter","Hauptstraße 16","54298","Gilzem","06506 267","patrick.dichter@web.de"]
["SKV Trier e.V.","SKV Trier","Mosel",8,"KSH Heiligkreuz 1 - 8","Karlsweg 5","54295","Trier","0651 36181","sportwart@skv-trier.de"]
["ESV Bingen","ESV Bingen","Nahe/Hunsrück",2,"ESV Sportheim","Espenschiedstraße 2","55411","Bingen","06721 16983","wolfgangrumpf@online.de"]
["KSV Weierbach","KSG Idar-Oberstein","Nahe/Hunsrück",4,"Hotel Hosser","Weierbacher Straße 70","55743","Idar-Oberstein","06784 2221","MarcoSchneiderIO@t-online.de"]
["Sportkeglerverein Idar-Oberstein e.V.","KSG Idar-Oberstein","Nahe/Hunsrück",4,"Hotel Hosser","Weierbacher Straße 70","55743","Idar-Oberstein","06784 2221","andreas.juchem@online.de"]
["KSV Haardtkopf e.V.","KSV Haardtkopf","Nahe/Hunsrück",8,"Baldenauhalle","Jahnstraße 1","54497","Morbach","06533 2099","H.B.Geiter@t-online.de"]
["SV 07 Bergen","SV 07 Bergen","Nahe/Hunsrück",2,"Bergener Hof","Hauptstraße 36","55608","Bergen","0173 2737681","mikelstar@aol.com"]
["TuS Kirchberg","TuS Kirchberg","Nahe/Hunsrück",4,"Kirchberger Hof","Kappeler Straße 14","55481","Kirchberg","06763 3763","marandi1.lagrange@gmail.com"]
["ESV Koblenz","ESV Koblenz","Rhein",4,"Kegelsporthalle Horchheim","Erbenstraße 4","56076","Koblenz-Horchheim","0261 701440","robisauer@web.de"]
["ESV Linz","ESV Linz","Rhein",2,"Schützenhaus Hubertushöhe","Oberlöh 41","53545","Linz","02644 7844","esv.linz@gmx.de"]
["KSC Polch","KSC Polch","Rhein",2,"Hotel \"Zur Post\" ","Mayener Straße 26 ","56753","Welling","02654 6311","lars-klasen@gmx.de "]
["KSC Wirges","KSC Wirges","Rhein",4,"Bürgerhaus Wirges","Montchaninplatz 1","56422","Wirges",null,"arnoarzbach@web.de"]
["KSV Bad Ems","KSV Bad Ems","Rhein",2,"Gaststätte Kreuzmühle","Arzbacherstraße 57","56130","Bad Ems","02603 12685","bernd-sauer-bossing@t-online.de"]
["KSV Stromberg e.V.","KSV Stromberg","Rhein",4,"Mehrzweckhalle Kegelstube","Am Telegraphenberg 15","56170","Bendorf-Stromberg","02601 2601","sport.ksvstromberg@gmx.de"]
["Grün-Weiß Isenburg","SG Isenburg/Dierdorf","Rhein",2,"Kegelsportanlage Dierdorf","Schulstraße","56269","Dierdorf",null,"ksv-dierdorf@mail.de"]
["KSV Dierdorf e.V.","SG Isenburg/Dierdorf","Rhein",4,"Kegelsportanlage Dierdorf","Schulstraße","56269","Dierdorf","0151 10630157","ksv-dierdorf@mail.de"]
["KSC Lonnig","SG Mittelrhein-Lonnig","Rhein",4,"Kegelsporthalle Horchheim","Erbenstraße 4","56076","Koblenz-Horchheim","0261 701440","s.kirst@gmx.de"]
["KV Koblenz-Horchheim","SG Mittelrhein-Lonnig","Rhein",4,"Kegelsporthalle Horchheim","Erbenstraße 4","56076","Koblenz-Horchheim","0261 701440","g.weissbrich@web.de"]
["TV 1895 Kestert e.V., Abt. Sportkegeln","SG Mittelrhein-Lonnig","Rhein","4","Kegelsporthalle Horchheim","Erbenstraße 4","56076","Koblenz-Horchheim","0261 701440","h.kleiner@ub.uni-frankfurt.de"]
["SK Gierschnach e.V.","SK Gierschnach","Rhein",2,"Bürgerhaus Gierschnach","Schulstraße 7","56294","Gierschnach",null,"w.port@web.de"]
["Sportkegler Münstermaifeld e.V.","SK Münstermaifeld","Rhein",4,"KSH Münstermaifeld","Pilliger Weg 1","56294","Münstermaifeld","02605 8950","skmuemai@t-online.de"]
["SKC Urmersbach e.V.","SKC Urmersbach","Rhein",2,"Gasthof Familie Briese","Im Acker 1","56761","Urmersbach","02603 9144499","sportkegelclub@mail.de"]
["SKV Mülheim-Kärlich","SKV Mülheim-Kärlich","Rhein",2,"Rheinland-Halle","Platz Chàteau-Renault 2","56218","Mülheim-Kärlich","0151 21573289","krumscheidmike@yahoo.de"]
["Wester-Wälder-Kegler e.V.","Wester-Wälder-Kegler","Rhein","4","Kegelsportanlage Dierdorf","Schulstraße","56269","Dierdorf",null,"rudiundgabimikus@web.de"]
[]
[]
["Abweichende Spielorte","TuS Kirchberg 3","Nahe/Hunsrück",8,"Baldenauhalle","Jahnstraße 1","54497","Morbach"]

{"sheet":"Spieler","index":2,"n_rows":600,"n_cols":9,"rows_kept":600,"cut":false,"hidden":false,"merged":[[2,1,2,2]]}
["  "]
[]
[null,"namentlich gemeldete aktive Kegler:",null,2025]
[]
[null,"Stand:  ","2025-08-14"]
["Passnummer","Name","Vorname","Bezirk","Verein","Klub / SG","Altersklasse\n2026","Datum Sperre_bis \noder Datum \nnicht mehr gemeldet","Status\nNEU / ÄNDERUNG /\nWECHSEL / SPERRE"]
[18640,"Brzuske","Achim","Nahe/Hunsrück","ESV Bingen","ESV Bingen","Herren C"]
[18641,"Buchholz","Hans-Georg","Nahe/Hunsrück","ESV Bingen","ESV Bingen","Jugend U14 w"]
[18642,"Buder","Lothar","Nahe/Hunsrück","ESV Bingen","ESV Bingen","Herren B"]
[18646,"Götze","Klaus","Nahe/Hunsrück","ESV Bingen","ESV Bingen","Herren C"]
[18647,"Götze","Martin","Nahe/Hunsrück","ESV Bingen","ESV Bingen","Herren"]
[18648,"Grausam","Peter","Nahe/Hunsrück","ESV Bingen","ESV Bingen","Herren B"]
[18702,"Hill","Thomas","Nahe/Hunsrück","ESV Bingen","ESV Bingen","Herren A"]
[18651,"Hofmann","Udo","Nahe/Hunsrück","ESV Bingen","ESV Bingen","Herren C"]
[18779,"Kleinz","Peter","Nahe/Hunsrück","ESV Bingen","ESV Bingen","Herren B"]
[18828,"Kunz","Kurt","Nahe/Hunsrück","ESV Bingen","ESV Bingen","Herren C"]
[18616,"Niebergall","Alfred","Nahe/Hunsrück","ESV Bingen","ESV Bingen","Herren C"]
[18706,"Pfeiffer","Kai-Uwe","Nahe/Hunsrück","ESV Bingen","ESV Bingen","Herren B"]
[18707,"Pfeiffer","Ute","Nahe/Hunsrück","ESV Bingen","ESV Bingen","Damen B"]
[18853,"Poppitz","Bärbel","Nahe/Hunsrück","ESV Bingen","ESV Bingen","Damen B"]
[18832,"Praß","Friedhelm","Nahe/Hunsrück","ESV Bingen","ESV Bingen","Herren C"]
[18660,"Rumpf","Wolfgang","Nahe/Hunsrück","ESV Bingen","ESV Bingen","Herren C"]
[18849,"Schäfer","Michael","Nahe/Hunsrück","ESV Bingen","ESV Bingen","Herren A"]
[61042,"Bossing","Patrick","Rhein","ESV Koblenz","ESV Koblenz","Herren"]
[14037,"Busche","Peter","Rhein","ESV Koblenz","ESV Koblenz","Herren B"]
[49909,"Friedrichs","Karl-Heinz","Rhein","ESV Koblenz","ESV Koblenz","Herren C"]
[14038,"Mertes","Mattias","Rhein","ESV Koblenz","ESV Koblenz","Herren B"]
[14039,"Mohrs","Peter","Rhein","ESV Koblenz","ESV Koblenz","Herren B"]
[14035,"Sauer","Robert","Rhein","ESV Koblenz","ESV Koblenz","Herren B"]
[105082,"Sauer","Torsten","Rhein","ESV Koblenz","ESV Koblenz","Herren"]
[53369,"Buslay","Franz","Rhein","ESV Linz","ESV Linz","Herren C"]
[53370,"Buslay","Guido","Rhein","ESV Linz","ESV Linz","Herren A"]
[61199,"Eger","Siegfried","Rhein","ESV Linz","ESV Linz","Herren C"]
[53371,"Freiberg","Bernd","Rhein","ESV Linz","ESV Linz","Herren B"]
[53376,"Olbrück","Stephan","Rhein","ESV Linz","ESV Linz","Herren A"]
[53377,"Töbel","Jörg","Rhein","ESV Linz","ESV Linz","Herren A"]
[167104,"Adam","Julia","Mosel","JSG Mosel","JSG Mosel","Jugend U14 w"]
[167108,"Andres","Max","Mosel","JSG Mosel","JSG Mosel","Jugend U14 m"]
[167107,"Herbst","Isabell","Mosel","JSG Mosel","JSG Mosel","Jugend U14 w"]
[163149,"Hoffmann","Jeremias","Mosel","JSG Mosel","JSG Mosel","Jugend U18 m"]
[167133,"Hoffmann","Sofie","Mosel","JSG Mosel","JSG Mosel","Jugend U14 w"]
[19002,"Mai","Henri","Mosel","JSG Mosel","JSG Mosel","Jugend U14 m"]
[19000,"Mai","Theo","Mosel","JSG Mosel","JSG Mosel","Jugend U14 m"]
[167111,"Marx","Matilda","Mosel","JSG Mosel","JSG Mosel","Jugend U14 w"]
[167106,"Mattes","Lilly","Mosel","JSG Mosel","JSG Mosel","Jugend U14 w"]
[167132,"Meschar","Wiebke","Mosel","JSG Mosel","JSG Mosel","Jugend U14 w"]
[167103,"Michaelis","Tamino","Mosel","JSG Mosel","JSG Mosel","Jugend U14 m"]
[19006,"Moscharaf","Aylin","Mosel","JSG Mosel","JSG Mosel","Jugend U14 w"]
[163145,"Peters","Jule","Mosel","JSG Mosel","JSG Mosel","Jugend U14 w"]
[167113,"Petruch","Luke","Mosel","JSG Mosel","JSG Mosel","Jugend U14 m"]
[167109,"Rock","Bennet","Mosel","JSG Mosel","JSG Mosel","Jugend U14 m"]
[167110,"Schrader","Clemens","Mosel","JSG Mosel","JSG Mosel","Jugend U14 m"]
[167112,"Sliwinski","Lena","Mosel","JSG Mosel","JSG Mosel","Jugend U14 w"]
[163147,"Tine","Bastian","Mosel","JSG Mosel","JSG Mosel","Jugend U14 m"]
[167114,"Weins","Josefine","Mosel","JSG Mosel","JSG Mosel","Jugend U14 w"]
[177019,"Conselman","John","Mosel","KF Kelereiber Wincheringen","KF Kelereiber","Herren C"]
[137335,"Dos Santos","Carlo","Mosel","KF Kelereiber Wincheringen","KF Kelereiber","Herren B"]
[177012,"Goncalves","Frederic","Mosel","KF Kelereiber Wincheringen","KF Kelereiber","Herren B"]
[95394,"Lang","Bernhard","Mosel","KF Kelereiber Wincheringen","KF Kelereiber","Herren C"]
[165091,"Moes","Eduardo","Mosel","KF Kelereiber Wincheringen","KF Kelereiber","Herren B"]
[163105,"Schneider","Jean-Claude","Mosel","KF Kelereiber Wincheringen","KF Kelereiber","Herren B"]
[137479,"Tangeten","Dominique","Mosel","KF Kelereiber Wincheringen","KF Kelereiber","Herren"]
[137337,"Trausch","Jerome","Mosel","KF Kelereiber Wincheringen","KF Kelereiber","Herren"]
[95350,"Weyrich","Patrick","Mosel","KF Kelereiber Wincheringen","KF Kelereiber","Herren B"]
[50571,"Becker","Frederic","Mosel","Kegelfreunde Moseltal Wincheringen","KF Moseltal Wincheringen","Herren A"]
[29575,"Boesen","Herbert","Mosel","Kegelfreunde Moseltal Wincheringen","KF Moseltal Wincheringen","Herren C"]
[13932,"Denzer","Guido","Mosel","Kegelfreunde Moseltal Wincheringen","KF Moseltal Wincheringen","Herren B"]
[177011,"Dos Santos","José","Mosel","Kegelfreunde Moseltal Wincheringen","KF Moseltal Wincheringen","Herren A"]
[177009,"Hoor","Dietmar","Mosel","Kegelfreunde Moseltal Wincheringen","KF Moseltal Wincheringen","Herren A"]
[163107,"Jeanpaul","David","Mosel","Kegelfreunde Moseltal Wincheringen","KF Moseltal Wincheringen","Herren A"]
[137383,"Kersch","Marc","Mosel","Kegelfreunde Moseltal Wincheringen","KF Moseltal Wincheringen","Herren A"]
[177010,"Khiro","Walid","Mosel","Kegelfreunde Moseltal Wincheringen","KF Moseltal Wincheringen","Herren"]
[163102,"Kirsch","Oliver","Mosel","Kegelfreunde Moseltal Wincheringen","KF Moseltal Wincheringen","Herren"]
[163106,"Meyer","Yvon","Mosel","Kegelfreunde Moseltal Wincheringen","KF Moseltal Wincheringen","Herren C"]
[165092,"Müller","Edmond","Mosel","Kegelfreunde Moseltal Wincheringen","KF Moseltal Wincheringen","Herren A"]
[147462,"Reuter","Matthias","Mosel","Kegelfreunde Moseltal Wincheringen","KF Moseltal Wincheringen","Herren"]
[158989,"Reuter","Michael","Mosel","Kegelfreunde Moseltal Wincheringen","KF Moseltal Wincheringen","Herren"]
[177003,"Schanen","Christian Jean","Mosel","Kegelfreunde Moseltal Wincheringen","KF Moseltal Wincheringen","Herren A"]
[137460,"Scherer","Danielle","Mosel","Kegelfreunde Moseltal Wincheringen","KF Moseltal Wincheringen","Damen"]
[137457,"Schmit","Daniel","Mosel","Kegelfreunde Moseltal Wincheringen","KF Moseltal Wincheringen","Herren"]
[13945,"Walter","Matthias","Mosel","Kegelfreunde Moseltal Wincheringen","KF Moseltal Wincheringen","Herren B"]
[144361,"Weber","Frank","Mosel","Kegelfreunde Moseltal Wincheringen","KF Moseltal Wincheringen","Herren A"]
[167138,"Weibel","Geoges","Mosel","Kegelfreunde Moseltal Wincheringen","KF Moseltal Wincheringen","Herren B"]
[13948,"Wietor","Aloysius","Mosel","Kegelfreunde Moseltal Wincheringen","KF Moseltal Wincheringen","Herren C"]
[127672,"Brost","Alois","Mosel","KSC Daun-Weiersbach e.V.","KSC Daun-Weiersbach","Herren C"]
[30355,"Brost","Jürgen","Mosel","KSC Daun-Weiersbach e.V.","KSC Daun-Weiersbach","Herren B"]
[29725,"Düx","Fabian","Mosel","KSC Daun-Weiersbach e.V.","KSC Daun-Weiersbach","Herren"]
[30367,"Herres","Gerhard","Mosel","KSC Daun-Weiersbach e.V.","KSC Daun-Weiersbach","Herren B"]
[127982,"Herres","Jonas","Mosel","KSC Daun-Weiersbach e.V.","KSC Daun-Weiersbach","Herren"]
[29731,"Junk","Katharina","Mosel","KSC Daun-Weiersbach e.V.","KSC Daun-Weiersbach","Damen"]
[29729,"Mangerich","Sofie","Mosel","KSC Daun-Weiersbach e.V.","KSC Daun-Weiersbach","Damen"]
[54508,"Mülleneisen","Theo","Mosel","KSC Daun-Weiersbach e.V.","KSC Daun-Weiersbach","Herren C"]
[127825,"Schmidtmeyer","Patrick","Mosel","KSC Daun-Weiersbach e.V.","KSC Daun-Weiersbach","Herren"]
[22016,"Schnorpfeil","Simone","Mosel","KSC Daun-Weiersbach e.V.","KSC Daun-Weiersbach","Damen"]
[30360,"Schüler","Ewald","Mosel","KSC Daun-Weiersbach e.V.","KSC Daun-Weiersbach","Herren C"]
[163150,"Schüller","Luke","Mosel","KSC Daun-Weiersbach e.V.","KSC Daun-Weiersbach","Jugend U14 m"]
[22059,"Simon","Heinz-Peter","Mosel","KSC Daun-Weiersbach e.V.","KSC Daun-Weiersbach","Herren B"]
[127955,"Springer","Julius","Mosel","KSC Daun-Weiersbach e.V.","KSC Daun-Weiersbach","Jugend U24 m"]
[144346,"Theobald","Joel","Mosel","KSC Daun-Weiersbach e.V.","KSC Daun-Weiersbach","Jugend U24 m"]
[30223,"Thönnes","Frank","Mosel","KSC Daun-Weiersbach e.V.","KSC Daun-Weiersbach","Herren A"]
[165985,"Umbach","Guido","Mosel","KSC Daun-Weiersbach e.V.","KSC Daun-Weiersbach","Herren B"]
[29732,"Werner","Dominik","Mosel","KSC Daun-Weiersbach e.V.","KSC Daun-Weiersbach","Herren"]
[29730,"Werner","Janine","Mosel","KSC Daun-Weiersbach e.V.","KSC Daun-Weiersbach","Damen"]
[30224,"Werner","Peter","Mosel","KSC Daun-Weiersbach e.V.","KSC Daun-Weiersbach","Herren A"]
[30225,"Winbush","Floyd","Mosel","KSC Daun-Weiersbach e.V.","KSC Daun-Weiersbach","Herren C"]
[165056,"Wolter","Andre","Mosel","KSC Daun-Weiersbach e.V.","KSC Daun-Weiersbach","Herren"]
[30227,"Zenner","Andreas","Mosel","KSC Daun-Weiersbach e.V.","KSC Daun-Weiersbach","Herren"]
[30363,"Zimmer","Dieter","Mosel","KSC Daun-Weiersbach e.V.","KSC Daun-Weiersbach","Herren B"]
[45328,"Acht","Thomas","Rhein","KSC Polch","KSC Polch","Herren B"]
[61101,"Alsbach","Elmar","Rhein","KSC Polch","KSC Polch","Herren B"]
[61097,"Freund","Ralf","Rhein","KSC Polch","KSC Polch","Herren B"]
[45333,"Kauroff","Michael","Rhein","KSC Polch","KSC Polch","Herren C"]
[61127,"Kessler","Manfred","Rhein","KSC Polch","KSC Polch","Herren B"]
[53390,"Klasen","Lars","Rhein","KSC Polch","KSC Polch","Herren"]
[45342,"Klein","Horst","Rhein","KSC Polch","KSC Polch","Herren C"]
[165062,"Koch","Falko","Rhein","KSC Polch","KSC Polch","Herren A"]
[60240,"Krötz","Josef","Rhein","KSC Polch","KSC Polch","Herren B"]
[14021,"Müller","Hubert","Rhein","KSC Polch","KSC Polch","Herren B"]
[177004,"Schmitz","Harald","Rhein","KSC Polch","KSC Polch","Herren B"]
[45338,"Schweitzer","Lothar","Rhein","KSC Polch","KSC Polch","Herren A"]
[53382,"Setz","Rolf","Rhein","KSC Polch","KSC Polch","Herren B"]
[61100,"Wirschem","Ewald","Rhein","KSC Polch","KSC Polch","Herren C"]
[61152,"Arzbach","Arno","Rhein","KSC Wirges","KSC Wirges","Herren B"]
[105119,"Arzbach","Susanne","Rhein","KSC Wirges","KSC Wirges","Damen B"]
[147518,"Aßmann","Johannes","Rhein","KSC Wirges","KSC Wirges","Herren C"]
[165982,"Barucha","Mina","Rhein","KSC Wirges","KSC Wirges","Jugend U18 w"]
[163122,"Barucha","Nelio","Rhein","KSC Wirges","KSC Wirges","Jugend U10 m"]
[14046,"Gries","Oliver","Rhein","KSC Wirges","KSC Wirges","Herren"]
[163123,"Hanekamp","Hannah","Rhein","KSC Wirges","KSC Wirges","Jugend U18 w"]
[159032,"Hanekamp","Marcus","Rhein","KSC Wirges","KSC Wirges","Herren A"]
[163125,"Hanekamp","Sophie","Rhein","KSC Wirges","KSC Wirges","Jugend U14 w"]
[61008,"Heinrich","Georg","Rhein","KSC Wirges","KSC Wirges","Herren C"]
[18936,"Hochkirchen","Mario","Rhein","KSC Wirges","KSC Wirges","Herren A"]
[147517,"Knops","Michael","Rhein","KSC Wirges","KSC Wirges","Herren A"]
[165961,"Merk","Maya","Rhein","KSC Wirges","KSC Wirges","Jugend U14 w"]
[61015,"Piroth","Andre","Rhein","KSC Wirges","KSC Wirges","Herren A"]
[163120,"Salheiser","Isabell","Rhein","KSC Wirges","KSC Wirges","Jugend U14 w"]
[144365,"Schmidt","Klaus","Rhein","KSC Wirges","KSC Wirges","Herren A"]
[18959,"Zimmermann","Dirk","Rhein","KSC Wirges","KSC Wirges","Herren"]
[18597,"Becker","Heinz","Nahe/Hunsrück","Sportkeglerverein Idar-Oberstein e.V.","KSG Idar-Oberstein","Herren C"]
[18598,"Bernd","Wolfgang","Nahe/Hunsrück","Sportkeglerverein Idar-Oberstein e.V.","KSG Idar-Oberstein","Herren C"]
[18613,"Biegel","Hartmut","Nahe/Hunsrück","Sportkeglerverein Idar-Oberstein e.V.","KSG Idar-Oberstein","Herren C"]
[13973,"Cullmann","Manfred","Nahe/Hunsrück","Sportkeglerverein Idar-Oberstein e.V.","KSG Idar-Oberstein","Herren C"]
[18595,"Fuchs","Manfred","Nahe/Hunsrück","Sportkeglerverein Idar-Oberstein e.V.","KSG Idar-Oberstein","Herren C"]
[18599,"Fuhr","Michael","Nahe/Hunsrück","Sportkeglerverein Idar-Oberstein e.V.","KSG Idar-Oberstein","Herren"]
[18600,"Gottlöber","Sven","Nahe/Hunsrück","Sportkeglerverein Idar-Oberstein e.V.","KSG Idar-Oberstein","Herren"]
[18601,"Gottlöber","Uwe","Nahe/Hunsrück","Sportkeglerverein Idar-Oberstein e.V.","KSG Idar-Oberstein","Herren B"]
[18602,"Groß","Otto","Nahe/Hunsrück","Sportkeglerverein Idar-Oberstein e.V.","KSG Idar-Oberstein","Herren C"]
[18636,"Hosser","Werner","Nahe/Hunsrück","KSV Weierbach","KSG Idar-Oberstein","Herren C"]
[18615,"Hosser","Wolfgang","Nahe/Hunsrück","KSV Weierbach","KSG Idar-Oberstein","Herren B"]
[18628,"Janietz","Rainer","Nahe/Hunsrück","KSV Weierbach","KSG Idar-Oberstein","Herren B"]
[18603,"Juchem","Andreas","Nahe/Hunsrück","Sportkeglerverein Idar-Oberstein e.V.","KSG Idar-Oberstein","Herren B"]
[18838,"Kaucher","Marco","Nahe/Hunsrück","Sportkeglerverein Idar-Oberstein e.V.","KSG Idar-Oberstein","Herren"]
[127993,"Knobel","Kai","Nahe/Hunsrück","KSV Weierbach","KSG Idar-Oberstein","Herren"]
[158972,"Kullmann","Enzo","Nahe/Hunsrück","Sportkeglerverein Idar-Oberstein e.V.","KSG Idar-Oberstein","Jugend U24 m"]
[18609,"Meinert","Gerhard","Nahe/Hunsrück","Sportkeglerverein Idar-Oberstein e.V.","KSG Idar-Oberstein","Herren C"]
[18605,"Reichardt","Manfred","Nahe/Hunsrück","Sportkeglerverein Idar-Oberstein e.V.","KSG Idar-Oberstein","Herren C"]
[18608,"Schäfer","Andreas","Nahe/Hunsrück","Sportkeglerverein Idar-Oberstein e.V.","KSG Idar-Oberstein","Herren A"]
[18858,"Schindler","Sebastian","Nahe/Hunsrück","Sportkeglerverein Idar-Oberstein e.V.","KSG Idar-Oberstein","Herren"]
[18606,"Schneider","Marco","Nahe/Hunsrück","Sportkeglerverein Idar-Oberstein e.V.","KSG Idar-Oberstein","Herren A"]
[18618,"Steinhauer","Markus","Nahe/Hunsrück","KSV Weierbach","KSG Idar-Oberstein","Herren A"]
[18851,"Stern","Ronny","Nahe/Hunsrück","Sportkeglerverein Idar-Oberstein e.V.","KSG Idar-Oberstein","Herren"]
[13980,"Stumm","Alfred","Nahe/Hunsrück","Sportkeglerverein Idar-Oberstein e.V.","KSG Idar-Oberstein","Herren C"]
[18725,"Zepp","Thomas","Nahe/Hunsrück","Sportkeglerverein Idar-Oberstein e.V.","KSG Idar-Oberstein","Herren B"]
[29504,"Bohn","Christian","Mosel","KSV Riol","KSG Osburg-Riol","Herren A"]
[30234,"Britz","Peter","Mosel","KSV Osburg","KSG Osburg-Riol","Herren C"]
[39972,"Graf","Jana","Mosel","KSV Osburg","KSG Osburg-Riol","Damen"]
[158952,"Grünen","Christian","Mosel","KSV Osburg","KSG Osburg-Riol","Herren"]
[21608,"Haan","Patrick","Mosel","KSV Riol","KSG Osburg-Riol","Herren B"]
[30244,"Hamm","Thorsten","Mosel","KSV Osburg","KSG Osburg-Riol","Herren B"]
[127963,"Haupenthal","Jonas","Mosel","KSV Osburg","KSG Osburg-Riol","Jugend U24 m"]
[127964,"Haupenthal","Lars","Mosel","KSV Osburg","KSG Osburg-Riol","Jugend U18 m"]
[30245,"Herrig","Thorsten","Mosel","KSV Osburg","KSG Osburg-Riol","Herren"]
[30246,"Herrig","Walter","Mosel","KSV Osburg","KSG Osburg-Riol","Herren C"]
[167123,"Holweck","Finn","Mosel","KSV Osburg","KSG Osburg-Riol","Jugend U18 m"]
[30375,"Hurt","Nicolas","Mosel","KSV Osburg","KSG Osburg-Riol","Herren"]
[30323,"Jostock","Ralf","Mosel","KSV Osburg","KSG Osburg-Riol","Herren B"]
[144349,"Köhl","Eliah","Mosel","KSV Osburg","KSG Osburg-Riol","Jugend U18 m"]
[127669,"Köhl","Leon","Mosel","KSV Osburg","KSG Osburg-Riol","Jugend U24 m"]
[30313,"Kollmann","Holger","Mosel","KSV Osburg","KSG Osburg-Riol","Herren"]
[147480,"Krämer","Jonas","Mosel","KSV Riol","KSG Osburg-Riol","Jugend U14 m"]
[22015,"Krämer","Verena","Mosel","KSV Riol","KSG Osburg-Riol","Damen"]
[159012,"Kreusch","Janosch","Mosel","KSV Osburg","KSG Osburg-Riol","Jugend U18 m"]
[144347,"Kreusch","Jossel","Mosel","KSV Osburg","KSG Osburg-Riol","Jugend U24 m"]
[29513,"Leinweber","Markus","Mosel","KSV Riol","KSG Osburg-Riol","Herren A"]
[29514,"Leis","Helmut","Mosel","KSV Riol","KSG Osburg-Riol","Herren A"]
[13927,"Leis","Marjan","Mosel","KSV Riol","KSG Osburg-Riol","Herren"]
[18952,"Linden","Mario","Mosel","KSV Osburg","KSG Osburg-Riol","Herren A"]
[147464,"Louis","Ken","Mosel","KSV Riol","KSG Osburg-Riol","Herren"]
[137360,"Mayer","Maurice","Mosel","KSV Osburg","KSG Osburg-Riol","Jugend U18 m"]
[29521,"Meter","Patrick","Mosel","KSV Riol","KSG Osburg-Riol","Herren"]
[127574,"Michels","Markus","Mosel","KSV Osburg","KSG Osburg-Riol","Herren A"]
[167124,"Mohr","Luca","Mosel","KSV Osburg","KSG Osburg-Riol","Jugend U18 m"]
[29523,"Müller","Dirk","Mosel","KSV Riol","KSG Osburg-Riol","Herren"]
[30259,"Neufing","Werner","Mosel","KSV Osburg","KSG Osburg-Riol","Herren C"]
[167125,"Nohl","Conner","Mosel","KSV Osburg","KSG Osburg-Riol","Jugend U18 m"]
[19003,"Petruch","Ben","Mosel","KSV Osburg","KSG Osburg-Riol","Jugend U18 m"]
[163146,"Petruch","Nick","Mosel","KSV Osburg","KSG Osburg-Riol","Jugend U18 m"]
[127668,"Petruch","Paul","Mosel","KSV Osburg","KSG Osburg-Riol","Jugend U24 m"]
[29527,"Porten","Peter","Mosel","KSV Riol","KSG Osburg-Riol","Herren B"]
[30260,"Quint","Günther","Mosel","KSV Osburg","KSG Osburg-Riol","Herren C"]
[30261,"Quint","Thorsten","Mosel","KSV Osburg","KSG Osburg-Riol","Herren"]
[163116,"Resch","Lucas","Mosel","KSV Osburg","KSG Osburg-Riol","Jugend U18 m"]
[30265,"Scherf","Stefan","Mosel","KSV Osburg","KSG Osburg-Riol","Herren"]
[29632,"Schmitt","Christoph","Mosel","KSV Osburg","KSG Osburg-Riol","Herren"]
[22012,"Schmitt","Martin","Mosel","KSV Osburg","KSG Osburg-Riol","Herren B"]
[127667,"Schmoll","Jonas","Mosel","KSV Osburg","KSG Osburg-Riol","Jugend U24 m"]
[127665,"Schmoll","Lukas","Mosel","KSV Osburg","KSG Osburg-Riol","Herren"]
[153665,"Schoonderwoert","Maureen","Mosel","KSV Riol","KSG Osburg-Riol","Damen"]
[127965,"Schrader","Johann","Mosel","KSV Osburg","KSG Osburg-Riol","Jugend U18 m"]
[144342,"Steffes","Henri","Mosel","KSV Osburg","KSG Osburg-Riol","Jugend U24 m"]
[165093,"Valentin","Josef","Mosel","KSV Riol","KSG Osburg-Riol","Herren C"]
[29535,"Valentin","Moritz","Mosel","KSV Riol","KSG Osburg-Riol","Herren"]
[144350,"Weber","Leon","Mosel","KSV Osburg","KSG Osburg-Riol","Jugend U18 m"]
[29626,"Wenzel","Jennifer","Mosel","KSV Riol","KSG Osburg-Riol","Damen"]
[127991,"Winnebeck","Willi","Mosel","KSV Riol","KSG Osburg-Riol","Herren C"]
[30312,"Zentius","Edwin","Mosel","KSV Osburg","KSG Osburg-Riol","Herren B"]
[61027,"Klingelhöfer","Klaus","Rhein","KSV Bad Ems","KSV Bad Ems","Herren B"]
[61026,"Klingelhöfer","Timo","Rhein","KSV Bad Ems","KSV Bad Ems","Herren"]
[508610,"Sauer","Josef","Rhein","KSV Bad Ems","KSV Bad Ems","Herren C"]
[508181,"Sauer-Bossing","Bernd","Rhein","KSV Bad Ems","KSV Bad Ems","Herren C"]
[144362,"Weldert","Daniel","Rhein","KSV Bad Ems","KSV Bad Ems","Herren"]
[61037,"Benner","Svenja","Mosel","KSV \"Eifel\" Butzweiler e.V.","KSV Eifel Butzweiler","Damen"]
[22080,"Laudor","Oswald","Mosel","KSV \"Eifel\" Butzweiler e.V.","KSV Eifel Butzweiler","Herren C"]
[165086,"Metzdorf","Uwe","Mosel","KSV \"Eifel\" Butzweiler e.V.","KSV Eifel Butzweiler","Herren B"]
[22086,"Pippinger","Manfred","Mosel","KSV \"Eifel\" Butzweiler e.V.","KSV Eifel Butzweiler","Herren B"]
[22087,"Press","Thomas","Mosel","KSV \"Eifel\" Butzweiler e.V.","KSV Eifel Butzweiler","Herren A"]
[22091,"Schumacher","Christoph","Mosel","KSV \"Eifel\" Butzweiler e.V.","KSV Eifel Butzweiler","Herren"]
[22103,"Schumacher","Gabriele","Mosel","KSV \"Eifel\" Butzweiler e.V.","KSV Eifel Butzweiler","Damen B"]
[127790,"Schwall","Pascal","Mosel","KSV \"Eifel\" Butzweiler e.V.","KSV Eifel Butzweiler","Herren"]
[30348,"Zimmermann","Hendrik","Mosel","KSV \"Eifel\" Butzweiler e.V.","KSV Eifel Butzweiler","Herren"]
[18755,"Adolph","Walter","Nahe/Hunsrück","KSV Haardtkopf e.V.","KSV Haardtkopf","Herren C"]
[18758,"Gruber","Michael","Nahe/Hunsrück","KSV Haardtkopf e.V.","KSV Haardtkopf","Herren"]
[18825,"Moosmann","Volker","Nahe/Hunsrück","KSV Haardtkopf e.V.","KSV Haardtkopf","Herren"]
[18766,"Risch","Lothar","Nahe/Hunsrück","KSV Haardtkopf e.V.","KSV Haardtkopf","Herren C"]
[22023,"Alt","Matthias","Mosel","KSV Heidenburg e.V.","KSV Heidenburg","Herren"]
[22024,"Alt","Michael","Mosel","KSV Heidenburg e.V.","KSV Heidenburg","Herren A"]
[22026,"Basten","Stefan","Mosel","KSV Heidenburg e.V.","KSV Heidenburg","Herren A"]
[127780,"Berens","Daniel","Mosel","KSV Heidenburg e.V.","KSV Heidenburg","Herren"]
[22020,"Diederich","Martin","Mosel","KSV Heidenburg e.V.","KSV Heidenburg","Herren"]
[127779,"Eiserloh","Kai","Mosel","KSV Heidenburg e.V.","KSV Heidenburg","Herren"]
[22031,"Eiserloh","Siegfried","Mosel","KSV Heidenburg e.V.","KSV Heidenburg","Herren C"]
[29567,"Fuchs","Matthias","Mosel","KSV Heidenburg e.V.","KSV Heidenburg","Herren"]
[22019,"Kolz","Yannick","Mosel","KSV Heidenburg e.V.","KSV Heidenburg","Herren"]
[22043,"Micheln","Marc","Mosel","KSV Heidenburg e.V.","KSV Heidenburg","Herren"]
[22045,"Scheit","Andreas","Mosel","KSV Heidenburg e.V.","KSV Heidenburg","Herren A"]
[127578,"Schilling","Alexander","Mosel","KSV Heidenburg e.V.","KSV Heidenburg","Herren"]
[29532,"Schneider","Christian","Mosel","KSV Heidenburg e.V.","KSV Heidenburg","Herren A"]
[29738,"Schwager","Thomas","Mosel","KSV Heidenburg e.V.","KSV Heidenburg","Herren"]
[22046,"Thiel","Jürgen","Mosel","KSV Heidenburg e.V.","KSV Heidenburg","Herren"]
[61059,"Feichter","Florian","Rhein","KSV Stromberg e.V.","KSV Stromberg","Herren"]
[165963,"Feichter","Lou","Rhein","KSV Stromberg e.V.","KSV Stromberg","Jugend U10 w"]
[165962,"Feichter","Tom","Rhein","KSV Stromberg e.V.","KSV Stromberg","Jugend U10 m"]
[127859,"Hübgen","Felix","Rhein","KSV Stromberg e.V.","KSV Stromberg","Jugend U18 m"]
[53308,"Hübgen","Markus","Rhein","KSV Stromberg e.V.","KSV Stromberg","Herren"]
[159003,"Hübgen","Maxim","Rhein","KSV Stromberg e.V.","KSV Stromberg","Jugend U10 m"]
[159004,"Hübgen","Stella","Rhein","KSV Stromberg e.V.","KSV Stromberg","Jugend U10 w"]
[53309,"Hübgen","Thomas","Rhein","KSV Stromberg e.V.","KSV Stromberg","Herren"]
[167129,"Lampert-Feichter","Carina","Rhein","KSV Stromberg e.V.","KSV Stromberg","Damen"]
[144335,"Leich","Sabrina","Rhein","KSV Stromberg e.V.","KSV Stromberg","Damen"]
[147516,"Leich","Samu","Rhein","KSV Stromberg e.V.","KSV Stromberg","Jugend U14 m"]
[53331,"Michels","Rainer","Rhein","KSV Stromberg e.V.","KSV Stromberg","Herren"]
[14030,"Schneider","Dirk","Rhein","KSV Stromberg e.V.","KSV Stromberg","Herren A"]
[144340,"Schöneberg","Sam","Rhein","KSV Stromberg e.V.","KSV Stromberg","Jugend U14 m"]
[61061,"Schumacher","Klaus","Rhein","KSV Stromberg e.V.","KSV Stromberg","Herren"]
[14015,"Schumacher","Rene","Rhein","KSV Stromberg e.V.","KSV Stromberg","Herren"]
[53394,"Steffes","Isabella","Rhein","KSV Stromberg e.V.","KSV Stromberg","Damen"]
[144339,"Steffes","Mia","Rhein","KSV Stromberg e.V.","KSV Stromberg","Jugend U14 w"]
[61062,"Steinbach","Marco","Rhein","KSV Stromberg e.V.","KSV Stromberg","Herren A"]
[49899,"Volk","Jan","Rhein","KSV Stromberg e.V.","KSV Stromberg","Herren"]
[144332,"Walter","Klaus","Rhein","KSV Stromberg e.V.","KSV Stromberg","Herren"]
[144355,"Born","Matthias","Mosel","KSV Taelchen 1977 e.V.","KSV Tälchen","Herren"]
[127837,"Henter","Stephanie","Mosel","KSV Taelchen 1977 e.V.","KSV Tälchen","Damen"]
[144353,"Kasel","Andreas","Mosel","KSV Taelchen 1977 e.V.","KSV Tälchen","Herren"]
[127834,"Kasel","Ulrich","Mosel","KSV Taelchen 1977 e.V.","KSV Tälchen","Herren"]
[177005,"Koewenig","Johannes","Mosel","KSV Taelchen 1977 e.V.","KSV Tälchen","Herren"]
[163115,"Marxen","Udo","Mosel","KSV Taelchen 1977 e.V.","KSV Tälchen","Herren B"]
[29585,"Oeffling","Sven","Mosel","KSV Taelchen 1977 e.V.","KSV Tälchen","Herren"]
[29714,"Pfriem","Helmut","Mosel","KSV Taelchen 1977 e.V.","KSV Tälchen","Herren A"]
[153668,"Reuter","Hendrik","Mosel","KSV Taelchen 1977 e.V.","KSV Tälchen","Herren"]
[127573,"Schmidt","Frank","Mosel","KSV Taelchen 1977 e.V.","KSV Tälchen","Herren"]
[29720,"Schmitt","Norbert","Mosel","KSV Taelchen 1977 e.V.","KSV Tälchen","Herren"]
[144354,"Weitzel","Wilhelm","Mosel","KSV Taelchen 1977 e.V.","KSV Tälchen","Herren C"]
[29735,"Willems","Felix","Mosel","KSV Taelchen 1977 e.V.","KSV Tälchen","Herren"]
[127970,"Zimmer","Johannes","Mosel","KSV Taelchen 1977 e.V.","KSV Tälchen","Herren"]
[144345,"Zimmer","Michael","Mosel","KSV Taelchen 1977 e.V.","KSV Tälchen","Herren"]
[29722,"Zimmer","Rolf","Mosel","KSV Taelchen 1977 e.V.","KSV Tälchen","Herren B"]
[29723,"Zimmer","Stefan","Mosel","KSV Taelchen 1977 e.V.","KSV Tälchen","Herren"]
[61105,"Becker","Guido","Rhein","Grün-Weiß Isenburg","SG Isenburg/Dierdorf","Herren B"]
[14050,"Bolte","Achim","Rhein","Grün-Weiß Isenburg","SG Isenburg/Dierdorf","Herren B"]
[61143,"Falkuss","Andre","Rhein","Grün-Weiß Isenburg","SG Isenburg/Dierdorf","Herren"]
[49869,"Geldmacher","Dirk","Rhein","KSV Dierdorf e.V.","SG Isenburg/Dierdorf","Herren A"]
[144334,"Geldmacher","Sascha","Rhein","KSV Dierdorf e.V.","SG Isenburg/Dierdorf","Herren A"]
[14052,"Geldmacher-Zunft","Nicole","Rhein","KSV Dierdorf e.V.","SG Isenburg/Dierdorf","Damen B"]
[61108,"Göbel","Andreas","Rhein","Grün-Weiß Isenburg","SG Isenburg/Dierdorf","Herren"]
[61110,"Hoffmann","Michael","Rhein","Grün-Weiß Isenburg","SG Isenburg/Dierdorf","Herren"]
[61111,"Hoffmann","Peter","Rhein","Grün-Weiß Isenburg","SG Isenburg/Dierdorf","Herren C"]
[61112,"Hoffmann","Thomas","Rhein","Grün-Weiß Isenburg","SG Isenburg/Dierdorf","Herren A"]
[49872,"Köthe","Reinhard","Rhein","KSV Dierdorf e.V.","SG Isenburg/Dierdorf","Herren C"]
[61114,"Kurz","Klaus","Rhein","Grün-Weiß Isenburg","SG Isenburg/Dierdorf","Herren B"]
[61185,"Ley","Marvin","Rhein","Grün-Weiß Isenburg","SG Isenburg/Dierdorf","Herren"]
[105106,"Reffgen","Timo","Rhein","Grün-Weiß Isenburg","SG Isenburg/Dierdorf","Herren"]
[49877,"Schmitt","Klaus","Rhein","KSV Dierdorf e.V.","SG Isenburg/Dierdorf","Herren B"]
[61119,"Straden","Mike","Rhein","Grün-Weiß Isenburg","SG Isenburg/Dierdorf","Herren A"]
[49894,"Warnecke","Jörg","Rhein","KSV Dierdorf e.V.","SG Isenburg/Dierdorf","Herren A"]
[61120,"Wiegel","Frank","Rhein","Grün-Weiß Isenburg","SG Isenburg/Dierdorf","Herren A"]
[53318,"Becker","Jörg","Rhein","TV 1895 Kestert e.V., Abt. Sportkegeln","SG Mittelrhein-Lonnig","Herren B"]
[53348,"Blaumeiser","Kurt","Rhein","KSC Lonnig","SG Mittelrhein-Lonnig","Herren A"]
[53320,"Didinger","Leo","Rhein","TV 1895 Kestert e.V., Abt. Sportkegeln","SG Mittelrhein-Lonnig","Herren A"]
[53321,"Engel","Denis","Rhein","TV 1895 Kestert e.V., Abt. Sportkegeln","SG Mittelrhein-Lonnig","Herren"]
[53322,"Engel","Klaus","Rhein","TV 1895 Kestert e.V., Abt. Sportkegeln","SG Mittelrhein-Lonnig","Herren B"]
[53356,"Esch","Ewald","Rhein","KSC Lonnig","SG Mittelrhein-Lonnig","Herren C"]
[53355,"Frensch","Gerhard","Rhein","KSC Lonnig","SG Mittelrhein-Lonnig","Herren B"]
[61184,"Jaster","Claudia","Rhein","KSC Lonnig","SG Mittelrhein-Lonnig","Damen B"]
[53400,"Kasper-Kirst","Rita","Rhein","KSC Lonnig","SG Mittelrhein-Lonnig","Damen B"]
[53364,"Kirst","Peter","Rhein","KSC Lonnig","SG Mittelrhein-Lonnig","Herren C"]
[61121,"Kirst","Sebastian","Rhein","KSC Lonnig","SG Mittelrhein-Lonnig","Herren"]
[53326,"Kleiner","Holger","Rhein","TV 1895 Kestert e.V., Abt. Sportkegeln","SG Mittelrhein-Lonnig","Herren B"]
[45316,"Kranz","Susanne","Rhein","KV Koblenz-Horchheim","SG Mittelrhein-Lonnig","Damen B"]
[49903,"Kutscher","Hans-Jürgen","Rhein","KSC Lonnig","SG Mittelrhein-Lonnig","Herren C"]
[45306,"Schierk","Uwe","Rhein","KV Koblenz-Horchheim","SG Mittelrhein-Lonnig","Herren A"]
[53359,"Schneider","Konrad","Rhein","KSC Lonnig","SG Mittelrhein-Lonnig","Herren C"]
[61129,"Severin","Karl-Heinz","Rhein","KSC Lonnig","SG Mittelrhein-Lonnig","Herren B"]
[45305,"Simon","Ralf","Rhein","KSC Lonnig","SG Mittelrhein-Lonnig","Herren B"]
[45345,"Weckbecker","Felix","Rhein","KV Koblenz-Horchheim","SG Mittelrhein-Lonnig","Herren B"]
[165079,"Weingart","Patrick","Rhein","KSC Lonnig","SG Mittelrhein-Lonnig","Herren"]
[45302,"Weißbrich","Gisbert","Rhein","KV Koblenz-Horchheim","SG Mittelrhein-Lonnig","Herren B"]
[45301,"Westphal","Roland","Rhein","KV Koblenz-Horchheim","SG Mittelrhein-Lonnig","Herren A"]
[53354,"Wolf","Matthias","Rhein","KSC Lonnig","SG Mittelrhein-Lonnig","Herren B"]
[127680,"Arnoldy","Hubert","Mosel","FC Schöndorf","SG Schöndorf-Saarburg","Herren B"]
[127737,"Baumann","Norbert","Mosel","KSV Saartal Saarburg","SG Schöndorf-Saarburg","Herren B"]
[127686,"Birkel","Anneliese","Mosel","KSV Saartal Saarburg","SG Schöndorf-Saarburg","Damen C"]
[30276,"Dudek","Björn","Mosel","FC Schöndorf","SG Schöndorf-Saarburg","Herren"]
[30277,"Dudek","Kim","Mosel","FC Schöndorf","SG Schöndorf-Saarburg","Herren"]
[30275,"Dudek","Manfred","Mosel","FC Schöndorf","SG Schöndorf-Saarburg","Herren C"]
[165073,"Hill","Marvin","Mosel","FC Schöndorf","SG Schöndorf-Saarburg","Jugend U24 m"]
[127685,"Huber","Albert","Mosel","KSV Saartal Saarburg","SG Schöndorf-Saarburg","Herren C"]
[127684,"Janitzki","Hermann","Mosel","KSV Saartal Saarburg","SG Schöndorf-Saarburg","Herren B"]
[127967,"Kirchartz","Alexander","Mosel","FC Schöndorf","SG Schöndorf-Saarburg","Herren"]
[30281,"Kirchartz","Uwe","Mosel","FC Schöndorf","SG Schöndorf-Saarburg","Herren B"]
[165071,"Koch","Jonathan","Mosel","FC Schöndorf","SG Schöndorf-Saarburg","Herren"]
[165983,"Koch","Thomas","Mosel","FC Schöndorf","SG Schöndorf-Saarburg","Herren B"]
[30283,"Lauer","Marc","Mosel","FC Schöndorf","SG Schöndorf-Saarburg","Herren"]
[29517,"Mahnke","Roger","Mosel","KSV Saartal Saarburg","SG Schöndorf-Saarburg","Herren B"]
[127682,"Persch","Horst","Mosel","KSV Saartal Saarburg","SG Schöndorf-Saarburg","Herren B"]
[30287,"Pesie","Uwe","Mosel","FC Schöndorf","SG Schöndorf-Saarburg","Herren B"]
[127968,"Richter","Kai","Mosel","FC Schöndorf","SG Schöndorf-Saarburg","Herren"]
[127740,"Roth","Peter","Mosel","KSV Saartal Saarburg","SG Schöndorf-Saarburg","Herren C"]
[30289,"Schmitt","Norbert","Mosel","FC Schöndorf","SG Schöndorf-Saarburg","Herren B"]
[127683,"Steier","Josef","Mosel","KSV Saartal Saarburg","SG Schöndorf-Saarburg","Herren C"]
[30268,"Wagner","Thomas","Mosel","FC Schöndorf","SG Schöndorf-Saarburg","Herren B"]
[165072,"Weber","Nils","Mosel","FC Schöndorf","SG Schöndorf-Saarburg","Jugend U24 m"]
[127969,"Zimmer","Dominik","Mosel","FC Schöndorf","SG Schöndorf-Saarburg","Herren"]
[30361,"Bartz","Oliver","Mosel","SK Eifelland Gilzem","SK Eifelland Gilzem","Herren"]
[29749,"Bartz","Patrick","Mosel","SK Eifelland Gilzem","SK Eifelland Gilzem","Herren"]
[29697,"Bartz","Petra","Mosel","SK Eifelland Gilzem","SK Eifelland Gilzem","Damen B"]
[127953,"Bisdorf","Maximilian","Mosel","SK Eifelland Gilzem","SK Eifelland Gilzem","Jugend U24 m"]
[127742,"Blasen","Alain","Mosel","SK Eifelland Gilzem","SK Eifelland Gilzem","Herren"]
[159010,"Dichter","Caroline","Mosel","SK Eifelland Gilzem","SK Eifelland Gilzem","Jugend U18 w"]
[165095,"Dichter","Johannes","Mosel","SK Eifelland Gilzem","SK Eifelland Gilzem","Herren B"]
[29666,"Dichter","Klaus","Mosel","SK Eifelland Gilzem","SK Eifelland Gilzem","Herren C"]
[29682,"Dichter","Patrick","Mosel","SK Eifelland Gilzem","SK Eifelland Gilzem","Herren"]
[30376,"Dichter","Simon","Mosel","SK Eifelland Gilzem","SK Eifelland Gilzem","Herren"]
[144351,"Dichter","Ulrike","Mosel","SK Eifelland Gilzem","SK Eifelland Gilzem","Jugend U24 w"]
[50623,"Feld","Tobias","Mosel","SK Eifelland Gilzem","SK Eifelland Gilzem","Herren"]
[127791,"Fey","Madeleine","Mosel","SK Eifelland Gilzem","SK Eifelland Gilzem","Damen"]
[29683,"Fey","Tobias","Mosel","SK Eifelland Gilzem","SK Eifelland Gilzem","Herren"]
[127749,"Fuchs","Chris","Mosel","SK Eifelland Gilzem","SK Eifelland Gilzem","Herren"]
[29667,"Greischer","Fränk","Mosel","SK Eifelland Gilzem","SK Eifelland Gilzem","Herren A"]
[127952,"Grüber","Bastian","Mosel","SK Eifelland Gilzem","SK Eifelland Gilzem","Jugend U24 m"]
[127841,"Grüber","Klaus","Mosel","SK Eifelland Gilzem","SK Eifelland Gilzem","Herren A"]
[86149,"Halmes","Tom","Mosel","SK Eifelland Gilzem","SK Eifelland Gilzem","Herren"]
[127959,"Heser","Timo","Mosel","SK Eifelland Gilzem","SK Eifelland Gilzem","Jugend U24 m"]
[29671,"Hoffmann","Christian","Mosel","SK Eifelland Gilzem","SK Eifelland Gilzem","Herren"]
[15999,"Hoffmann","Kim","Mosel","SK Eifelland Gilzem","SK Eifelland Gilzem","Herren"]
[127958,"Hoffmann","Lea","Mosel","SK Eifelland Gilzem","SK Eifelland Gilzem","Jugend U24 w"]
[29704,"Hoffmann","Stefan","Mosel","SK Eifelland Gilzem","SK Eifelland Gilzem","Herren"]
[30377,"Hoffmann","Tom","Mosel","SK Eifelland Gilzem","SK Eifelland Gilzem","Herren"]
[30220,"Junk","Christian","Mosel","SK Eifelland Gilzem","SK Eifelland Gilzem","Herren"]
[18955,"Keller","Martine","Mosel","SK Eifelland Gilzem","SK Eifelland Gilzem","Damen"]
[159011,"Krajewski","Lena","Mosel","SK Eifelland Gilzem","SK Eifelland Gilzem","Jugend U18 w"]
[29691,"Kreinz","Marie","Mosel","SK Eifelland Gilzem","SK Eifelland Gilzem","Damen"]
[13950,"Mangerich","Julius","Mosel","SK Eifelland Gilzem","SK Eifelland Gilzem","Herren"]
[127960,"Mattes","Louis","Mosel","SK Eifelland Gilzem","SK Eifelland Gilzem","Jugend U24 m"]
[158978,"Michaelis","Christian","Mosel","SK Eifelland Gilzem","SK Eifelland Gilzem","Herren"]
[29743,"Müller","Werner","Mosel","SK Eifelland Gilzem","SK Eifelland Gilzem","Herren C"]
[30379,"Petry","Pascal","Mosel","SK Eifelland Gilzem","SK Eifelland Gilzem","Herren"]
[147463,"Poorters","Kim","Mosel","SK Eifelland Gilzem","SK Eifelland Gilzem","Herren"]
[160948,"Reiter","Günter","Mosel","SK Eifelland Gilzem","SK Eifelland Gilzem","Herren A"]
[29694,"Schmalen","Alfred","Mosel","SK Eifelland Gilzem","SK Eifelland Gilzem","Herren B"]
[127572,"Schmitt","Jean","Mosel","SK Eifelland Gilzem","SK Eifelland Gilzem","Herren B"]
[29677,"Seibel","Norbert","Mosel","SK Eifelland Gilzem","SK Eifelland Gilzem","Herren B"]
[127827,"Wirtz","Michael","Mosel","SK Eifelland Gilzem","SK Eifelland Gilzem","Herren"]
[144343,"Zehren","Felix","Mosel","SK Eifelland Gilzem","SK Eifelland Gilzem","Herren"]
[61072,"Heidger","Egon","Rhein","SK Gierschnach e.V.","SK Gierschnach","Herren B"]
[147512,"Port","Johanna","Rhein","SK Gierschnach e.V.","SK Gierschnach","Jugend U24 w"]
[61067,"Port","Jürgen","Rhein","SK Gierschnach e.V.","SK Gierschnach","Herren B"]
[147514,"Port","Karl","Rhein","SK Gierschnach e.V.","SK Gierschnach","Jugend U18 m"]
[45321,"Port","Leon","Rhein","SK Gierschnach e.V.","SK Gierschnach","Herren"]
[61068,"Port","Matthias","Rhein","SK Gierschnach e.V.","SK Gierschnach","Herren A"]
[61071,"Port","Toni","Rhein","SK Gierschnach e.V.","SK Gierschnach","Herren B"]
[61069,"Port","Werner","Rhein","SK Gierschnach e.V.","SK Gierschnach","Herren A"]
[61066,"Schmitz","Bernd","Rhein","SK Gierschnach e.V.","SK Gierschnach","Herren A"]
[147511,"Schmitz","Kim","Rhein","SK Gierschnach e.V.","SK Gierschnach","Jugend U18 w"]
[49897,"Seul","Maurice","Rhein","SK Gierschnach e.V.","SK Gierschnach","Herren"]
[61126,"Stichnoth","Thomas","Rhein","SK Gierschnach e.V.","SK Gierschnach","Herren"]
[127842,"Adams","Laura","Rhein","Sportkegler Münstermaifeld e.V.","SK Münstermaifeld","Jugend U18 w"]
[54340,"Adams","Mark","Rhein","Sportkegler Münstermaifeld e.V.","SK Münstermaifeld","Herren A"]
[518683,"Brachtendorf","Wolfgang","Rhein","Sportkegler Münstermaifeld e.V.","SK Münstermaifeld","Herren C"]
[163110,"Daheim","Cynthia","Rhein","Sportkegler Münstermaifeld e.V.","SK Münstermaifeld","Jugend U14 w"]
[165059,"Damm","Manfred","Rhein","Sportkegler Münstermaifeld e.V.","SK Münstermaifeld","Herren C"]
[127858,"Emmerich","Jana-Celine","Rhein","Sportkegler Münstermaifeld e.V.","SK Münstermaifeld","Jugend U24 w"]
[127857,"Emmerich","Jannik","Rhein","Sportkegler Münstermaifeld e.V.","SK Münstermaifeld","Jugend U24 m"]
[127856,"Emmerich","Maren","Rhein","Sportkegler Münstermaifeld e.V.","SK Münstermaifeld","Jugend U18 w"]
[14036,"Frevel","Julian","Rhein","Sportkegler Münstermaifeld e.V.","SK Münstermaifeld","Herren"]
[53339,"Göbel","Bernd","Rhein","Sportkegler Münstermaifeld e.V.","SK Münstermaifeld","Herren"]
[61046,"Göbel","Timo","Rhein","Sportkegler Münstermaifeld e.V.","SK Münstermaifeld","Herren"]
[61192,"Göbel","Uwe","Rhein","Sportkegler Münstermaifeld e.V.","SK Münstermaifeld","Herren A"]
[60239,"Hammer","Rolf","Rhein","Sportkegler Münstermaifeld e.V.","SK Münstermaifeld","Herren B"]
[53345,"Hein","Hermann-Josef","Rhein","Sportkegler Münstermaifeld e.V.","SK Münstermaifeld","Herren C"]
[53349,"Heinichen","Robert","Rhein","Sportkegler Münstermaifeld e.V.","SK Münstermaifeld","Herren"]
[53333,"Hesse","Peter","Rhein","Sportkegler Münstermaifeld e.V.","SK Münstermaifeld","Herren B"]
[147484,"Jochens","Emma","Rhein","Sportkegler Münstermaifeld e.V.","SK Münstermaifeld","Jugend U18 w"]
[105113,"Jung","Christian","Rhein","Sportkegler Münstermaifeld e.V.","SK Münstermaifeld","Herren"]
[158962,"Kill","Max","Rhein","Sportkegler Münstermaifeld e.V.","SK Münstermaifeld","Jugend U14 m"]
[53335,"Killadt","Mike","Rhein","Sportkegler Münstermaifeld e.V.","SK Münstermaifeld","Herren A"]
[147490,"Kochan","Johanna","Rhein","Sportkegler Münstermaifeld e.V.","SK Münstermaifeld","Jugend U18 w"]
[60243,"Krombach","Hans","Rhein","Sportkegler Münstermaifeld e.V.","SK Münstermaifeld","Herren C"]
[144333,"Lenk","Ralph","Rhein","Sportkegler Münstermaifeld e.V.","SK Münstermaifeld","Herren A"]
[163118,"Linscheid","Hanna","Rhein","Sportkegler Münstermaifeld e.V.","SK Münstermaifeld","Jugend U14 w"]
[144369,"Lohn","Miko","Rhein","Sportkegler Münstermaifeld e.V.","SK Münstermaifeld","Jugend U18 m"]
[61031,"Lohrum","Uwe","Rhein","Sportkegler Münstermaifeld e.V.","SK Münstermaifeld","Herren B"]
[127849,"Meichsner","Maya","Rhein","Sportkegler Münstermaifeld e.V.","SK Münstermaifeld","Jugend U24 w"]
[18916,"Meichsner","Stefan","Rhein","Sportkegler Münstermaifeld e.V.","SK Münstermaifeld","Herren A"]
[144363,"Mennillo","Nina","Rhein","Sportkegler Münstermaifeld e.V.","SK Münstermaifeld","Damen A"]
[19009,"Mennillo","Pia","Rhein","Sportkegler Münstermaifeld e.V.","SK Münstermaifeld","Jugend U14 w"]
[53346,"Mikat","Heinz","Rhein","Sportkegler Münstermaifeld e.V.","SK Münstermaifeld","Herren C"]
[18915,"Münch","Thorsten","Rhein","Sportkegler Münstermaifeld e.V.","SK Münstermaifeld","Herren"]
[147515,"Pauly","Mareike","Rhein","Sportkegler Münstermaifeld e.V.","SK Münstermaifeld","Damen"]
[53350,"Pauly","Patrick","Rhein","Sportkegler Münstermaifeld e.V.","SK Münstermaifeld","Herren"]
[153726,"Pinger","Niklas","Rhein","Sportkegler Münstermaifeld e.V.","SK Münstermaifeld","Jugend U24 m"]
[53332,"Port","Volker","Rhein","Sportkegler Münstermaifeld e.V.","SK Münstermaifeld","Herren"]
[53343,"Ragge","Daniela","Rhein","Sportkegler Münstermaifeld e.V.","SK Münstermaifeld","Damen A"]
[147488,"Ragge","Felix","Rhein","Sportkegler Münstermaifeld e.V.","SK Münstermaifeld","Jugend U14 m"]
[144371,"Ragge","Lea","Rhein","Sportkegler Münstermaifeld e.V.","SK Münstermaifeld","Jugend U18 w"]
[53341,"Ragge","Thorsten","Rhein","Sportkegler Münstermaifeld e.V.","SK Münstermaifeld","Herren A"]
[163112,"Rausch","Emma","Rhein","Sportkegler Münstermaifeld e.V.","SK Münstermaifeld","Jugend U14 w"]
[158956,"Roor","Eduard","Rhein","Sportkegler Münstermaifeld e.V.","SK Münstermaifeld","Jugend U14 m"]
[163109,"Roor","Michael","Rhein","Sportkegler Münstermaifeld e.V.","SK Münstermaifeld","Jugend U18 m"]
[165090,"Schäfer","Günter","Rhein","Sportkegler Münstermaifeld e.V.","SK Münstermaifeld","Herren C"]
[53342,"Schneider","Matthias","Rhein","Sportkegler Münstermaifeld e.V.","SK Münstermaifeld","Herren C"]
[60246,"Schnorpfeil","Franz","Rhein","Sportkegler Münstermaifeld e.V.","SK Münstermaifeld","Herren C"]
[165998,"Tetzlaff","Mathilda","Rhein","Sportkegler Münstermaifeld e.V.","SK Münstermaifeld","Jugend U14 w"]
[105071,"Trarbach","Frank","Rhein","Sportkegler Münstermaifeld e.V.","SK Münstermaifeld","Herren B"]
[61140,"von Polheim","Jennifer","Rhein","Sportkegler Münstermaifeld e.V.","SK Münstermaifeld","Damen"]
[177008,"Briese","Oliver","Rhein","SKC Urmersbach e.V.","SKC Urmersbach","Jugend U24 m"]
[49856,"Diensberg","Michael","Rhein","SKC Urmersbach e.V.","SKC Urmersbach","Herren B"]
[105092,"Fahrenkrog","Tim","Rhein","SKC Urmersbach e.V.","SKC Urmersbach","Herren"]
[49858,"Fuhrmann","Josef","Rhein","SKC Urmersbach e.V.","SKC Urmersbach","Herren B"]
[49868,"Gros","Walter","Rhein","SKC Urmersbach e.V.","SKC Urmersbach","Herren C"]
[49884,"Menzenbach","Kevin","Rhein","SKC Urmersbach e.V.","SKC Urmersbach","Herren"]
[105100,"Menzenbach","Leon","Rhein","SKC Urmersbach e.V.","SKC Urmersbach","Jugend U24 m"]
[49896,"Müller","Thomas","Rhein","SKC Urmersbach e.V.","SKC Urmersbach","Herren"]
[105093,"Roßwinkel","Manuel","Rhein","SKC Urmersbach e.V.","SKC Urmersbach","Herren"]
[49862,"Schmitz","Torsten","Rhein","SKC Urmersbach e.V.","SKC Urmersbach","Herren A"]
[49908,"Steffes-tun","Tim","Rhein","SKC Urmersbach e.V.","SKC Urmersbach","Herren"]
[49885,"Weber","Alexander","Rhein","SKC Urmersbach e.V.","SKC Urmersbach","Herren"]
[105103,"Weber","Fabian","Rhein","SKC Urmersbach e.V.","SKC Urmersbach","Herren"]
[49863,"Zeus","Peter","Rhein","SKC Urmersbach e.V.","SKC Urmersbach","Herren A"]
[49893,"Adams","Uwe","Rhein","SKV Mülheim-Kärlich","SKV Mülheim-Kärlich","Herren B"]
[61001,"Adams","Wolfgang","Rhein","SKV Mülheim-Kärlich","SKV Mülheim-Kärlich","Herren C"]
[45329,"Adler","Wolfgang","Rhein","SKV Mülheim-Kärlich","SKV Mülheim-Kärlich","Herren B"]
[14051,"Becker","Oliver","Rhein","SKV Mülheim-Kärlich","SKV Mülheim-Kärlich","Herren A"]
[53399,"Becker","Petra","Rhein","SKV Mülheim-Kärlich","SKV Mülheim-Kärlich","Damen B"]
[105095,"Cremans","Uwe","Rhein","SKV Mülheim-Kärlich","SKV Mülheim-Kärlich","Herren B"]
[45343,"Dombrowski","Sascha","Rhein","SKV Mülheim-Kärlich","SKV Mülheim-Kärlich","Herren"]
[45344,"Dombrowski","Volker","Rhein","SKV Mülheim-Kärlich","SKV Mülheim-Kärlich","Herren B"]
[105099,"Ganias","Sotirios","Rhein","SKV Mülheim-Kärlich","SKV Mülheim-Kärlich","Herren A"]
[45297,"Grundmann","Jan","Rhein","SKV Mülheim-Kärlich","SKV Mülheim-Kärlich","Herren"]
[49902,"Grundmann","Peter","Rhein","SKV Mülheim-Kärlich","SKV Mülheim-Kärlich","Herren C"]
[95993,"Hoppe","Hartmut","Rhein","SKV Mülheim-Kärlich","SKV Mülheim-Kärlich","Herren C"]
[61181,"Jursic","Mirsad","Rhein","SKV Mülheim-Kärlich","SKV Mülheim-Kärlich","Herren A"]
[49880,"Krumscheid","Mike","Rhein","SKV Mülheim-Kärlich","SKV Mülheim-Kärlich","Herren A"]
[105094,"Krumscheid","Nicole","Rhein","SKV Mülheim-Kärlich","SKV Mülheim-Kärlich","Damen B"]
[61186,"Lemke","Frank","Rhein","SKV Mülheim-Kärlich","SKV Mülheim-Kärlich","Herren B"]
[136571,"Monteiro Marques","Jasmin","Rhein","SKV Mülheim-Kärlich","SKV Mülheim-Kärlich","Damen"]
[105078,"Mülhöfer","Bernd","Rhein","SKV Mülheim-Kärlich","SKV Mülheim-Kärlich","Herren A"]
[127860,"Mülhöfer","Laura","Rhein","SKV Mülheim-Kärlich","SKV Mülheim-Kärlich","Damen"]
[105081,"Mülhöfer","Peter","Rhein","SKV Mülheim-Kärlich","SKV Mülheim-Kärlich","Herren B"]
[61133,"Ollesch","Jens","Rhein","SKV Mülheim-Kärlich","SKV Mülheim-Kärlich","Herren"]
[105098,"Przybylla","Rene","Rhein","SKV Mülheim-Kärlich","SKV Mülheim-Kärlich","Herren"]
[49906,"Sauer","Peter","Rhein","SKV Mülheim-Kärlich","SKV Mülheim-Kärlich","Herren C"]
[61135,"Schmidt","Marcel","Rhein","SKV Mülheim-Kärlich","SKV Mülheim-Kärlich","Herren"]
[49891,"Schneider","Kurt","Rhein","SKV Mülheim-Kärlich","SKV Mülheim-Kärlich","Herren C"]
[127852,"Senf","Alexandra","Rhein","SKV Mülheim-Kärlich","SKV Mülheim-Kärlich","Damen A"]
[18819,"Senf","Torsten","Rhein","SKV Mülheim-Kärlich","SKV Mülheim-Kärlich","Herren A"]
[61180,"Süsmund","Gert","Rhein","SKV Mülheim-Kärlich","SKV Mülheim-Kärlich","Herren B"]
[29608,"Bach","Christian","Mosel","SKV Trier e.V.","SKV Trier","Herren A"]
[29594,"Brandscheidt","Jürgen","Mosel","SKV Trier e.V.","SKV Trier","Herren B"]
[127826,"Brink","Andre","Mosel","SKV Trier e.V.","SKV Trier","Herren C"]
[29595,"Clemens","Peter","Mosel","SKV Trier e.V.","SKV Trier","Herren B"]
[127999,"Damble","Werner","Mosel","SKV Trier e.V.","SKV Trier","Herren C"]
[29657,"Daus","Karl","Mosel","SKV Trier e.V.","SKV Trier","Herren C"]
[177014,"Degano","Steve","Mosel","SKV Trier e.V.","SKV Trier","Herren"]
[19004,"Emmerich","Fiona","Mosel","SKV Trier e.V.","SKV Trier","Jugend U18 w"]
[127758,"Erbisch","Oliver","Mosel","SKV Trier e.V.","SKV Trier","Herren"]
[127987,"Föhr","Hans-Juergen","Mosel","SKV Trier e.V.","SKV Trier","Herren B"]
[127759,"Frank","Beatrix","Mosel","SKV Trier e.V.","SKV Trier","Damen B"]
[29618,"Frank","Hans-Jürgen","Mosel","SKV Trier e.V.","SKV Trier","Herren B"]
[127971,"Göbel","Manfred","Mosel","SKV Trier e.V.","SKV Trier","Herren B"]
[127576,"Grethen","Romain","Mosel","SKV Trier e.V.","SKV Trier","Herren C"]
[127678,"Hontheim","Peter","Mosel","SKV Trier e.V.","SKV Trier","Herren C"]
[165094,"Huss","Alain","Mosel","SKV Trier e.V.","SKV Trier","Herren"]
[19005,"Huss","Jason","Mosel","SKV Trier e.V.","SKV Trier","Jugend U18 m"]
[29620,"Jostock","Karl","Mosel","SKV Trier e.V.","SKV Trier","Herren C"]
[160923,"Jungers","Luca","Mosel","SKV Trier e.V.","SKV Trier","Jugend U24 m"]
[165077,"Jungers","Steve","Mosel","SKV Trier e.V.","SKV Trier","Herren A"]
[29622,"Klink","Daniel","Mosel","SKV Trier e.V.","SKV Trier","Herren A"]
[153092,"Klink","Jennifer","Mosel","SKV Trier e.V.","SKV Trier","Damen"]
[127988,"Klink","Marion","Mosel","SKV Trier e.V.","SKV Trier","Damen B"]
[29727,"Klink","Nico","Mosel","SKV Trier e.V.","SKV Trier","Herren"]
[165078,"Kremer","Mireille","Mosel","SKV Trier e.V.","SKV Trier","Damen A"]
[177015,"Kremser","Marcus","Mosel","SKV Trier e.V.","SKV Trier","Herren A"]
[29661,"Langanki","Burghard","Mosel","SKV Trier e.V.","SKV Trier","Herren C"]
[127784,"Lorenz","Georg","Mosel","SKV Trier e.V.","SKV Trier","Herren"]
[144357,"Louis","Joseph","Mosel","SKV Trier e.V.","SKV Trier","Herren B"]
[127664,"Mentgen","Catharina","Mosel","SKV Trier e.V.","SKV Trier","Jugend U24 w"]
[127757,"Müller","Manfred","Mosel","SKV Trier e.V.","SKV Trier","Herren C"]
[29583,"Neumeyer","Peter","Mosel","SKV Trier e.V.","SKV Trier","Herren C"]
[160910,"Ourth","Sam","Mosel","SKV Trier e.V.","SKV Trier","Jugend U24 m"]
[137371,"Parracho","Mandy","Mosel","SKV Trier e.V.","SKV Trier","Damen"]
[30288,"Plebs","Patrick","Mosel","SKV Trier e.V.","SKV Trier","Herren"]
[29569,"Poth","Engelbert","Mosel","SKV Trier e.V.","SKV Trier","Herren B"]
[127989,"Reinert","Andrea","Mosel","SKV Trier e.V.","SKV Trier","Damen B"]
[127755,"Reinert","Jürgen","Mosel","SKV Trier e.V.","SKV Trier","Herren B"]
[127681,"Röpke","Dieter","Mosel","SKV Trier e.V.","SKV Trier","Herren C"]
[29604,"Schmitt","Klaus","Mosel","SKV Trier e.V.","SKV Trier","Herren C"]
[29624,"Schrot","Stefanie","Mosel","SKV Trier e.V.","SKV Trier","Damen"]
[127835,"Seibert","Christopher","Mosel","SKV Trier e.V.","SKV Trier","Herren"]
[27992,"Steines","Thomas","Mosel","SKV Trier e.V.","SKV Trier","Herren"]
[18922,"Strater","Christian","Mosel","SKV Trier e.V.","SKV Trier","Herren"]
[160870,"Strater","Hanna","Mosel","SKV Trier e.V.","SKV Trier","Damen"]
[18921,"Szymkiewicz","Marlene","Mosel","SKV Trier e.V.","SKV Trier","Damen B"]
[29639,"Thiel","Gottfried","Mosel","SKV Trier e.V.","SKV Trier","Herren B"]
[127677,"Wagner","Marc","Mosel","SKV Trier e.V.","SKV Trier","Herren B"]
[127670,"Welter","Jerry","Mosel","SKV Trier e.V.","SKV Trier","Jugend U24 m"]
[127756,"Willms","Marika","Mosel","SKV Trier e.V.","SKV Trier","Damen C"]
[127761,"Wolter","Luca","Mosel","SKV Trier e.V.","SKV Trier","Herren"]
[18840,"Damian","Michael","Nahe/Hunsrück","SV 07 Bergen","SV 07 Bergen","Herren B"]
[18847,"Endres","Uwe","Nahe/Hunsrück","SV 07 Bergen","SV 07 Bergen","Herren A"]
[18859,"Heine","Tom","Nahe/Hunsrück","SV 07 Bergen","SV 07 Bergen","Herren"]
[13958,"Herz","Söhren","Nahe/Hunsrück","SV 07 Bergen","SV 07 Bergen","Herren A"]
[18855,"Klein","Steffen","Nahe/Hunsrück","SV 07 Bergen","SV 07 Bergen","Herren"]
[18621,"Kriegisch","Michael","Nahe/Hunsrück","SV 07 Bergen","SV 07 Bergen","Herren"]
[163133,"Pies","Yannik","Nahe/Hunsrück","SV 07 Bergen","SV 07 Bergen","Herren"]
[13962,"Schlemmer","Julius","Nahe/Hunsrück","SV 07 Bergen","SV 07 Bergen","Herren C"]
[13963,"Schneider","Rolf","Nahe/Hunsrück","SV 07 Bergen","SV 07 Bergen","Herren B"]
[18624,"Schwickert","Stefan","Nahe/Hunsrück","SV 07 Bergen","SV 07 Bergen","Herren B"]
[18808,"Schwinn","Jochen","Nahe/Hunsrück","SV 07 Bergen","SV 07 Bergen","Herren"]
[18852,"Schwinn","Stefan","Nahe/Hunsrück","SV 07 Bergen","SV 07 Bergen","Herren A"]
[13964,"Spielmann","Kurt","Nahe/Hunsrück","SV 07 Bergen","SV 07 Bergen","Herren C"]
[13968,"Wegat","Frank","Nahe/Hunsrück","SV 07 Bergen","SV 07 Bergen","Herren A"]
[13969,"Wegener","Uwe","Nahe/Hunsrück","SV 07 Bergen","SV 07 Bergen","Herren B"]
[18845,"Adams","Markus","Nahe/Hunsrück","TuS Kirchberg","TuS Kirchberg","Herren A"]
[18592,"Augustin","Manfred","Nahe/Hunsrück","TuS Kirchberg","TuS Kirchberg","Herren C"]
[18692,"Bender","Hubert","Nahe/Hunsrück","TuS Kirchberg","TuS Kirchberg","Herren B"]
[18693,"Bender","Matthias","Nahe/Hunsrück","TuS Kirchberg","TuS Kirchberg","Herren"]
[18586,"Endres","Erwin","Nahe/Hunsrück","TuS Kirchberg","TuS Kirchberg","Herren C"]
[18593,"Fuchss","Ferdinand","Nahe/Hunsrück","TuS Kirchberg","TuS Kirchberg","Herren"]
[18735,"Heen","Manfred","Nahe/Hunsrück","TuS Kirchberg","TuS Kirchberg","Herren C"]
[18585,"Klingels","Torsten","Nahe/Hunsrück","TuS Kirchberg","TuS Kirchberg","Herren A"]
[18763,"Martin","Andreas","Nahe/Hunsrück","TuS Kirchberg","TuS Kirchberg","Herren B"]
[18860,"Martin","Lukas","Nahe/Hunsrück","TuS Kirchberg","TuS Kirchberg","Jugend U24 m"]
[160931,"Martin","Markus","Nahe/Hunsrück","TuS Kirchberg","TuS Kirchberg","Herren A"]
[30373,"Mickisch","Horst","Nahe/Hunsrück","TuS Kirchberg","TuS Kirchberg","Herren B"]
[18773,"Mitscher","Alfred","Nahe/Hunsrück","TuS Kirchberg","TuS Kirchberg","Herren C"]
[18848,"Moosmann","Kim-Leon","Nahe/Hunsrück","TuS Kirchberg","TuS Kirchberg","Jugend U24 m"]
[18774,"Nauerth","Christian","Nahe/Hunsrück","TuS Kirchberg","TuS Kirchberg","Herren"]
[18582,"Rübenich","Walter","Nahe/Hunsrück","TuS Kirchberg","TuS Kirchberg","Herren C"]
[18816,"Schimper","Niklas","Nahe/Hunsrück","TuS Kirchberg","TuS Kirchberg","Herren"]
[18769,"Schneider","Marco","Nahe/Hunsrück","TuS Kirchberg","TuS Kirchberg","Herren"]
[18589,"Schuch","Heinz","Nahe/Hunsrück","TuS Kirchberg","TuS Kirchberg","Herren C"]
[165993,"Simon","Karl-Heinz","Nahe/Hunsrück","TuS Kirchberg","TuS Kirchberg","Herren B"]
[165994,"Steinmetz","Manfred","Nahe/Hunsrück","TuS Kirchberg","TuS Kirchberg","Herren B"]
[18798,"Stockter","Falko","Nahe/Hunsrück","TuS Kirchberg","TuS Kirchberg","Herren"]
[18748,"Thees","Marco","Nahe/Hunsrück","TuS Kirchberg","TuS Kirchberg","Herren"]
[18775,"Wirz","Markus","Nahe/Hunsrück","TuS Kirchberg","TuS Kirchberg","Herren"]
[80660,"Abt","Hans-Werner","Rhein","Wester-Wälder-Kegler e.V.","Wester-Wälder-Kegler","Herren C"]
[61169,"Fischer","Hans-Günter","Rhein","Wester-Wälder-Kegler e.V.","Wester-Wälder-Kegler","Herren C"]
[61138,"Leonards","Eva","Rhein","Wester-Wälder-Kegler e.V.","Wester-Wälder-Kegler","Damen"]
[61164,"Maul","Siegfried","Rhein","Wester-Wälder-Kegler e.V.","Wester-Wälder-Kegler","Herren C"]
[61165,"Mikus","Martin","Rhein","Wester-Wälder-Kegler e.V.","Wester-Wälder-Kegler","Herren"]
[61166,"Mikus","Rudi","Rhein","Wester-Wälder-Kegler e.V.","Wester-Wälder-Kegler","Herren C"]
[61163,"Neitzert","Philipp","Rhein","Wester-Wälder-Kegler e.V.","Wester-Wälder-Kegler","Herren"]
[61158,"Scharfenstein","Alexander","Rhein","Wester-Wälder-Kegler e.V.","Wester-Wälder-Kegler","Herren"]
[61159,"Scharfenstein","Gerd","Rhein","Wester-Wälder-Kegler e.V.","Wester-Wälder-Kegler","Herren B"]
[61160,"Seeger","Kai","Rhein","Wester-Wälder-Kegler e.V.","Wester-Wälder-Kegler","Herren"]
[61087,"Weigold","Winfried","Rhein","Wester-Wälder-Kegler e.V.","Wester-Wälder-Kegler","Herren C"]
[61144,"Weiß","Philipp","Rhein","Wester-Wälder-Kegler e.V.","Wester-Wälder-Kegler","Herren"]
[64424,"Weiß","Sebastian","Rhein","Wester-Wälder-Kegler e.V.","Wester-Wälder-Kegler","Herren"]

{"sheet":"Ligeneinteilung","index":3,"n_rows":11,"n_cols":4,"rows_kept":11,"cut":false,"hidden":false,"merged":[]}
["RLP-Liga","Regionalliga","Oberliga","Bezirksliga"]
["KF Moseltal Wincheringen 1","KSG Osburg-Riol 3","KF Moseltal Wincheringen 2","KF Kelereiber 1"]
["KSC Daun-Weiersbach 2","KSG Osburg-Riol 4","KSG Osburg-Riol 5","KF Moseltal Wincheringen 3"]
["KSG Idar-Oberstein 1","KSV Heidenburg 1","KSV Eifel Butzweiler 1","KF Moseltal Wincheringen 4"]
["KSG Osburg-Riol 1","KSV Heidenburg 2","KSV Tälchen 2","KSC Daun-Weiersbach 3"]
["KSG Osburg-Riol 2","KSV Tälchen 1","SG Schöndorf-Saarburg 2","KSC Daun-Weiersbach 4"]
["SG Mittelrhein-Lonnig 1","SK Eifelland Gilzem 3","SK Eifelland Gilzem 5","KSG Osburg-Riol 6"]
["SG Schöndorf-Saarburg 1","SK Eifelland Gilzem 4","SK Eifelland Gilzem 6","KSV Tälchen 3"]
["SK Münstermaifeld 2","SKV Trier 3","SKV Trier 5","SK Eifelland Gilzem 7"]
["SKC Urmersbach 1","SKV Trier 4","SKV Trier 6","SKV Trier 7"]
["SKV Trier 2"]

{"sheet":"Altersklassen","index":4,"n_rows":21,"n_cols":3,"rows_kept":21,"cut":false,"hidden":false,"merged":[[0,0,0,1],[2,0,2,4],[3,0,3,4]]}
["Alters Klasseneinteilung  ",null,2026]
[]
["Maßgebend für die Einstufung in die Altersklassen ist das Alter, das im "]
["jeweiligen Kalenderjahr erreicht wird, in dem die Meisterschaft stattfindet."]
[]
["Altersklasse","Alter","Jahrgänge  "]
["U  10  w / m","bis   09 Jahre","> 2017"]
["U  14  w / m","10   -  14  Jahre","2012 - 2016"]
["U  18  w / m","15   -  18  Jahre ","2008 - 2011"]
[]
["U 24  w","19   -  24  Jahre  ","2002 - 2007"]
["Damen","25   -  44  Jahre","1982 - 2001"]
["Damen A","45   -  54  Jahre","1972 - 1981"]
["Damen B","55   -  64  Jahre","1962 - 1971"]
["Damen C","65 Jahre und älter","<= 1961"]
[]
["U 24 m","19   -  24  Jahre","2002 - 2007"]
["Herren","25   -  49  Jahre","1977 - 2001"]
["Herren A","50   -  59  Jahre","1967 - 1976"]
["Herren B","60   -  69  Jahre","1957 - 1966"]
["Herren C","70 Jahre und älter","<= 1956"]

{"sheet":"Sonstiges","index":5,"n_rows":18,"n_cols":3,"rows_kept":18,"cut":false,"hidden":false,"merged":[]}
[]
[null,"Parameter","Wert"]
[null,"Pfad neue Spielberichte (muß existieren)","J:\\Spielberichte\\2025_2026"]
[null,"Standard-Mail-Adresse","spielberichte-gaumosel@web.de"]
[null,"Standard-Mail-Text","Anbei der Spielbericht      Gruß"]
[]
[null,"Spielbeginn und Bahnwechsel"]
[null,"Bahnwechsel in Minuten",60]
[null,"Uhrzeiten zur Auswahl im Spielbericht"]
[null,"10:00:00"]
[null,"12:00:00"]
[null,"13:00:00"]
[null,"14:00:00"]
[null,"15:00:00"]
[null,"16:00:00"]
[null,"17:00:00"]
[null,"18:00:00"]
[null,"18:30:00"]